fUSD/lending_fUSD_20260616
["ID","MTS","AMOUNT","RATE_DAILY","PERIOD"]
[425206687,1781578242000,-151.0,0.00018647,2]
[425206693,1781578242000,-578.20924308,0.00018647,2]
[425206694,1781578242000,-151.0,0.00018647,2]
[425206695,1781578242000,-500.0,0.00018647,2]
[425206690,1781578242000,-500.0,0.00018647,2]
[425206689,1781578242000,-151.0,0.00018647,2]
[425206681,1781578242000,-151.0,0.00018647,2]
[425206696,1781578242000,-1428.38747117,0.00018647,2]
[425206697,1781578242000,-500.0,0.00018647,2]
[425206698,1781578242000,-151.0,0.00018647,2]
[425206699,1781578242000,-1481.2378076,0.00018647,2]
[425206709,1781578242000,-151.0,0.00018647,2]
[425206701,1781578242000,-500.0,0.00018647,2]
[425206700,1781578242000,-500.0,0.00018647,2]
[425206702,1781578242000,-1536.04360648,0.00018647,2]
[425206703,1781578242000,-151.0,0.00018647,2]
[425206706,1781578242000,-151.0,0.00018647,2]
[425206708,1781578242000,-500.0,0.00018647,2]
[425206707,1781578242000,-2005.9555727,0.00018647,2]
[425206704,1781578242000,-500.0,0.00018647,2]
[425206705,1781578242000,-1592.87721992,0.00018647,2]
[425206682,1781578242000,-444.89807101,0.00018647,2]
[425206692,1781578242000,-1377.42282658,0.00018647,2]
[425206684,1781578242000,-1235.18214925,0.00018647,2]
[425206661,1781578242000,-500.0,0.000165,3]
[425206680,1781578242000,-1191.11104074,0.00018647,2]
[425206717,1781578242000,-151.0,0.00018647,2]
[425206662,1781578242000,-168.69,0.00016712,2]
[425206655,1781578242000,-610.87271872,0.00016438,2]
[425206656,1781578242000,-610.87271872,0.00016438,2]
[425206659,1781578242000,-1734.62772924,0.00016455,2]
[425206657,1781578242000,-230.84,0.00016438,2]
[425206658,1781578242000,-900.0,0.00016438,2]
[425206660,1781578242000,-500.0,0.000165,3]
[425206663,1781578242000,-681.96,0.000168,7]
[425206665,1781578242000,-1798.80895522,0.00017003,2]
[425206666,1781578242000,-258.954375,0.00017156,2]
[425206670,1781578242000,-1934.38338736,0.00018099,2]
[425206683,1781578242000,-155.7272644,0.00018647,2]
[425206668,1781578242000,-6001.62907571,0.00017881,2]
[425206671,1781578242000,-668.7,0.0001841,2]
[425206674,1781578242000,-1068.11,0.00018647,2]
[425206667,1781578242000,-1865.36488656,0.00017551,2]
[425206669,1781578242000,-350.0,0.00018,2]
[425206672,1781578242000,-1030.0,0.00018647,2]
[425206673,1781578242000,-151.0,0.00018647,2]
[425206676,1781578242000,-174.61919141,0.00018647,2]
[425206686,1781578242000,-1280.88388877,0.00018647,2]
[425206675,1781578242000,-151.0,0.00018647,2]
[425206677,1781578242000,-1107.63007,0.00018647,2]
[425206679,1781578242000,-1148.61238259,0.00018647,2]
[425206678,1781578242000,-151.0,0.00018647,2]
[425206664,1781578242000,-1600.0,0.00016825,2]
[425206721,1781578242000,-151.0,0.00018647,2]
[425206764,1781578242000,-500.0,0.00018647,2]
[425206712,1781578242000,-500.0,0.00018647,2]
[425206741,1781578242000,-152.0,0.00018647,2]
[425206746,1781578242000,-152.0,0.00018647,2]
[425206747,1781578242000,-151.0,0.00018647,2]
[425206748,1781578242000,-500.0,0.00018647,2]
[425206745,1781578242000,-151.0,0.00018647,2]
[425206749,1781578242000,-151.0,0.00018647,2]
[425206751,1781578242000,-151.0,0.00018647,2]
[425206754,1781578242000,-152.0,0.00018647,2]
[425206752,1781578242000,-500.0,0.00018647,2]
[425206753,1781578242000,-151.0,0.00018647,2]
[425206755,1781578242000,-151.0,0.00018647,2]
[425206756,1781578242000,-500.0,0.00018647,2]
[425206758,1781578242000,-152.0,0.00018647,2]
[425206761,1781578242000,-151.0,0.00018647,2]
[425206762,1781578242000,-152.0,0.00018647,2]
[425206760,1781578242000,-500.0,0.00018647,2]
[425206757,1781578242000,-151.0,0.00018647,2]
[425206759,1781578242000,-151.0,0.00018647,2]
[425206763,1781578242000,-151.0,0.00018647,2]
[425206765,1781578242000,-152.0,0.00018647,2]
[425206766,1781578242000,-151.0,0.00018647,2]
[425206767,1781578242000,-152.0,0.00018647,2]
[425206768,1781578242000,-152.0,0.00018647,2]
[425206769,1781578242000,-151.0,0.00018702,2]
[425206718,1781578242000,-695.39793187,0.00018647,2]
[425206743,1781578242000,-500.0,0.00018647,2]
[425206742,1781578242000,-151.0,0.00018647,2]
[425206750,1781578242000,-152.0,0.00018647,2]
[425206739,1781578242000,-2054.15682156,0.00018647,2]
[425206740,1781578242000,-151.0,0.00018647,2]
[425206714,1781578242000,-151.0,0.00018647,2]
[425206713,1781578242000,-500.0,0.00018647,2]
[425206710,1781578242000,-151.0,0.00018647,2]
[425206716,1781578242000,-500.0,0.00018647,2]
[425206715,1781578242000,-1712.93078311,0.00018647,2]
[425206720,1781578242000,-1776.30922209,0.00018647,2]
[425206719,1781578242000,-500.0,0.00018647,2]
[425206723,1781578242000,-500.0,0.00018647,2]
[425206731,1781578242000,-1910.18787185,0.00018647,2]
[425206732,1781578242000,-500.0,0.00018647,2]
[425206722,1781578242000,-152.0,0.00018647,2]
[425206733,1781578242000,-151.0,0.00018647,2]
[425206711,1781578242000,-1651.81367706,0.00018647,2]
[425206724,1781578242000,-151.0,0.00018647,2]
[425206727,1781578242000,-500.0,0.00018647,2]
[425206736,1781578242000,-151.0,0.00018647,2]
[425206744,1781578242000,-500.0,0.00018647,2]
[425206734,1781578242000,-152.0,0.00018647,2]
[425206738,1781578242000,-500.0,0.00018647,2]
[425206735,1781578242000,-1980.8648231,0.00018647,2]
[425206737,1781578242000,-500.0,0.00018647,2]
[425206725,1781578242000,-1842.0326633,0.00018647,2]
[425206728,1781578242000,-151.0,0.00018647,2]
[425206730,1781578242000,-151.0,0.00018647,2]
[425206726,1781578242000,-500.0,0.00018647,2]
[425206729,1781578242000,-152.0,0.00018647,2]
[425206815,1781578243000,-1817.48693096,0.000199,2]
[425206817,1781578243000,-9882.81,0.0002,2]
[425206813,1781578243000,-1162.99061262,0.000199,2]
[425206805,1781578243000,-187.78006524,0.00019743,2]
[425206812,1781578243000,-1817.48693096,0.000198,2]
[425206811,1781578243000,-7575.27095994,0.000198,2]
[425206808,1781578243000,-2157.14243826,0.00019743,2]
[425206809,1781578243000,-500.0,0.00019776,2]
[425206807,1781578243000,-444.89807101,0.00019743,2]
[425206814,1781578243000,-7575.27095994,0.000199,2]
[425206810,1781578243000,-1162.99061262,0.000198,2]
[425206820,1781578243000,-400.0,0.0002,2]
[425206828,1781578243000,-3021.0,0.0002,2]
[425206816,1781578243000,-168.701646,0.0002,2]
[425206819,1781578243000,-183.0,0.0002,2]
[425206826,1781578243000,-501.0,0.0002,2]
[425206827,1781578243000,-152.0,0.0002,2]
[425206821,1781578243000,-166.0,0.0002,2]
[425206829,1781578243000,-185.0,0.0002,2]
[425206822,1781578243000,-155.0,0.0002,2]
[425206823,1781578243000,-209.0,0.0002,2]
[425206824,1781578243000,-1251.0,0.0002,2]
[425206825,1781578243000,-361.0,0.0002,2]
[425206830,1781578243000,-1162.99061262,0.000201,2]
[425206802,1781578243000,-7575.27095994,0.000196,2]
[425206818,1781578243000,-611.0,0.0002,2]
[425206803,1781578243000,-1817.48693096,0.000196,2]
[425206771,1781578243000,-151.0,0.00018812,2]
[425206800,1781578243000,-1817.48693096,0.000194,2]
[425206770,1781578243000,-151.0,0.00018757,2]
[425206774,1781578243000,-194.97869125,0.00018889,3]
[425206773,1781578243000,-151.0,0.00018867,2]
[425206772,1781578243000,-3635.41930716,0.00018862,2]
[425206775,1781578243000,-164.2,0.000189,2]
[425206776,1781578243000,-1500.0,0.000189,6]
[425206778,1781578243000,-151.0,0.00018922,2]
[425206777,1781578243000,-183.03,0.00018903,2]
[425206779,1781578243000,-151.0,0.00018977,2]
[425206780,1781578243000,-152.0,0.00019,2]
[425206831,1781578243000,-7575.27095994,0.000201,2]
[425206786,1781578243000,-181.08010149,0.00019195,2]
[425206782,1781578243000,-151.0,0.00019032,2]
[425206784,1781578243000,-151.0,0.00019087,2]
[425206781,1781578243000,-3021.0,0.00019,2]
[425206783,1781578243000,-184.82838929,0.00019066,2]
[425206785,1781578243000,-151.0,0.00019142,2]
[425206788,1781578243000,-444.89807101,0.00019195,2]
[425206790,1781578243000,-2080.17592889,0.00019195,2]
[425206794,1781578243000,-151.0,0.00019252,2]
[425206792,1781578243000,-151.0,0.00019197,2]
[425206797,1781578243000,-164.8947693,0.00019299,2]
[425206798,1781578243000,-1162.99061262,0.000194,2]
[425206801,1781578243000,-1162.99061262,0.000196,2]
[425206799,1781578243000,-7575.27095994,0.000194,2]
[425206796,1781578243000,-172.48934562,0.00019266,3]
[425206832,1781578243000,-1817.48693096,0.000201,2]
[425206881,1781578243000,-500.0,0.00022,3]
[425206837,1781578243000,-7575.27095994,0.000203,2]
[425206861,1781578243000,-501.0,0.00021,2]
[425206865,1781578243000,-7575.27095994,0.000212,2]
[425206876,1781578243000,-9882.81,0.00021649,2]
[425206868,1781578243000,-168.701646,0.00021333,2]
[425206867,1781578243000,-568.3,0.000213,7]
[425206877,1781578243000,-5000.0,0.00021918,2]
[425206869,1781578243000,-151.0,0.00021386,2]
[425206870,1781578243000,-599.60298507,0.00021386,2]
[425206871,1781578243000,-721.12765534,0.00021386,2]
[425206875,1781578243000,-500.0,0.00021468,2]
[425206874,1781578243000,-2405.55389863,0.00021387,2]
[425206873,1781578243000,-444.89807101,0.00021387,2]
[425206872,1781578243000,-209.40437684,0.00021387,2]
[425206879,1781578243000,-444.89807101,0.00021935,2]
[425206887,1781578243000,-450.0,0.00022,2]
[425206882,1781578243000,-500.0,0.00022,3]
[425206878,1781578243000,-217.15233878,0.00021935,2]
[425206880,1781578243000,-2494.55939288,0.00021935,2]
[425206889,1781578243000,-166.0,0.00022,2]
[425206885,1781578243000,-611.0,0.00022,2]
[425206886,1781578243000,-183.0,0.00022,2]
[425206888,1781578243000,-1000.0,0.00022,2]
[425206883,1781578243000,-313.0,0.00022,2]
[425206890,1781578243000,-155.0,0.00022,2]
[425206834,1781578243000,-194.72792766,0.00020291,2]
[425206863,1781578243000,-3021.0,0.00021,2]
[425206858,1781578243000,-209.0,0.00021,2]
[425206884,1781578243000,-315.0,0.00022,2]
[425206857,1781578243000,-155.0,0.00021,2]
[425206862,1781578243000,-152.0,0.00021,2]
[425206835,1781578243000,-444.89807101,0.00020291,2]
[425206839,1781578243000,-500.0,0.0002037,2]
[425206838,1781578243000,-1817.48693096,0.000203,2]
[425206836,1781578243000,-2236.95670847,0.00020291,2]
[425206833,1781578243000,-6001.62907571,0.00020244,2]
[425206841,1781578243000,-7575.27095994,0.000206,2]
[425206843,1781578243000,-164.2,0.000206,2]
[425206842,1781578243000,-1817.48693096,0.000206,2]
[425206845,1781578243000,-1817.48693096,0.000208,2]
[425206847,1781578243000,-444.89807101,0.00020839,2]
[425206844,1781578243000,-7575.27095994,0.000208,2]
[425206851,1781578243000,-500.0,0.00020904,2]
[425206840,1781578243000,-668.7,0.00020381,2]
[425206848,1781578243000,-2319.72410669,0.00020839,2]
[425206849,1781578243000,-500.0,0.00020843,2]
[425206860,1781578243000,-361.0,0.00021,2]
[425206864,1781578243000,-185.0,0.00021,2]
[425206866,1781578243000,-1817.48693096,0.000212,2]
[425206856,1781578243000,-166.0,0.00021,2]
[425206859,1781578243000,-1251.0,0.00021,2]
[425206852,1781578243000,-7575.27095994,0.00021,2]
[425206853,1781578243000,-1817.48693096,0.00021,2]
[425206850,1781578243000,-500.0,0.00020843,2]
[425206846,1781578243000,-201.93286098,0.00020839,2]
[425206854,1781578243000,-611.0,0.00021,2]
[425206855,1781578243000,-183.0,0.00021,2]
[425206917,1781578244000,-611.0,0.00023,2]
[425206918,1781578244000,-183.0,0.00023,2]
[425206932,1781578244000,-500.0,0.00023459,2]
[425206920,1781578244000,-160.0,0.00023,2]
[425206916,1781578244000,-158.14814695,0.00022884,2]
[425206924,1781578244000,-501.0,0.00023,2]
[425206923,1781578244000,-361.0,0.00023,2]
[425206921,1781578244000,-209.0,0.00023,2]
[425206919,1781578244000,-166.0,0.00023,2]
[425206922,1781578244000,-1251.0,0.00023,2]
[425206928,1781578244000,-233.5188934,0.00023031,2]
[425206927,1781578244000,-185.0,0.00023,2]
[425206933,1781578244000,-2022.95598402,0.00023462,7]
[425206934,1781578244000,-2737.1223,0.00023462,7]
[425206937,1781578244000,-2781.82699784,0.00023579,2]
[425206935,1781578244000,-242.15909246,0.00023579,2]
[425206931,1781578244000,-9882.81,0.00023298,7]
[425206930,1781578244000,-2682.57183977,0.00023031,2]
[425206929,1781578244000,-444.89807101,0.00023031,2]
[425206926,1781578244000,-3021.0,0.00023,2]
[425206940,1781578244000,-1226.35,0.00023662,7]
[425206936,1781578244000,-444.89807101,0.00023579,2]
[425206925,1781578244000,-170.69387663,0.00023,2]
[425206898,1781578244000,-185.0,0.00022,2]
[425206914,1781578244000,-500.0,0.00022775,2]
[425206949,1781578244000,-209.0,0.00024,2]
[425206900,1781578244000,-164.2,0.000222,7]
[425206891,1781578244000,-209.0,0.00022,2]
[425206901,1781578244000,-3635.41930716,0.0002234,2]
[425206894,1781578244000,-361.0,0.00022,2]
[425206893,1781578244000,-316.0,0.00022,2]
[425206892,1781578244000,-1251.0,0.00022,2]
[425206897,1781578244000,-3021.0,0.00022,2]
[425206896,1781578244000,-152.0,0.00022,2]
[425206895,1781578244000,-501.0,0.00022,2]
[425206915,1781578244000,-1102.58414403,0.00022884,2]
[425206899,1781578244000,-500.0,0.00022112,2]
[425206904,1781578244000,-206.8751148,0.00022407,2]
[425206906,1781578244000,-182.27727672,0.00022407,2]
[425206909,1781578244000,-225.18697532,0.00022483,2]
[425206905,1781578244000,-206.8751148,0.00022407,2]
[425206908,1781578244000,-182.27727671,0.00022407,2]
[425206907,1781578244000,-182.27727671,0.00022407,2]
[425206910,1781578244000,-444.89807101,0.00022483,2]
[425206911,1781578244000,-2586.85809042,0.00022483,2]
[425206912,1781578244000,-6001.62907571,0.00022608,2]
[425206913,1781578244000,-168.701646,0.00022667,2]
[425206903,1781578244000,-206.8751148,0.00022407,2]
[425206946,1781578244000,-611.0,0.00024,2]
[425206902,1781578244000,-668.7,0.00022353,2]
[425206945,1781578244000,-168.701646,0.00024,2]
[425206970,1781578244000,-500.0,0.00024162,2]
[425206964,1781578244000,-3577.9,0.00024135,2]
[425206975,1781578244000,-500.0,0.0002432,30]
[425206967,1781578244000,-1280.52,0.00024135,2]
[425206973,1781578244000,-150.0,0.000243,2]
[425206971,1781578244000,-3905.3,0.00024174,2]
[425206977,1781578244000,-500.0,0.0002432,30]
[425206983,1781578244000,-500.0,0.00024594,30]
[425206984,1781578244000,-500.0,0.00024594,30]
[425206991,1781578244000,-4700.04632392,0.000247,2]
[425206972,1781578244000,-1102.58414403,0.00024295,2]
[425206985,1781578244000,-895.0,0.00024594,30]
[425206986,1781578244000,-551.61,0.00024658,2]
[425206987,1781578244000,-1000.0,0.00024658,2]
[425206978,1781578244000,-500.0,0.0002432,30]
[425206979,1781578244000,-668.7,0.00024324,2]
[425206980,1781578244000,-1189.56,0.00024372,7]
[425206982,1781578244000,-1009.81,0.00024372,7]
[425206988,1781578244000,-260.4103811,0.00024675,2]
[425206989,1781578244000,-444.89807113,0.00024675,2]
[425206990,1781578244000,-2991.49051684,0.00024675,2]
[425206938,1781578244000,-1102.58414403,0.0002359,2]
[425206976,1781578244000,-500.0,0.0002432,30]
[425206974,1781578244000,-150.0,0.000243,2]
[425206981,1781578244000,-751.95,0.00024372,7]
[425206966,1781578244000,-1359.0,0.00024135,2]
[425206969,1781578244000,-6078.0,0.00024135,2]
[425206950,1781578244000,-1251.0,0.00024,2]
[425206948,1781578244000,-166.0,0.00024,2]
[425206939,1781578244000,-709.71,0.00023662,7]
[425206941,1781578244000,-775.21,0.00023662,7]
[425206947,1781578244000,-183.0,0.00024,2]
[425206944,1781578244000,-500.0,0.00023945,2]
[425206943,1781578244000,-15617.81,0.000238,2]
[425206951,1781578244000,-361.0,0.00024,2]
[425206958,1781578244000,-151.0,0.00024125,2]
[425206957,1781578244000,-164.2,0.000241,7]
[425206942,1781578244000,-1041.04,0.00023662,7]
[425206959,1781578244000,-621.78829552,0.00024125,2]
[425206960,1781578244000,-747.80937859,0.00024125,2]
[425206963,1781578244000,-2884.75459676,0.00024127,2]
[425206965,1781578244000,-383.0,0.00024135,2]
[425206968,1781578244000,-934.0,0.00024135,2]
[425206956,1781578244000,-731.587,0.00024046,30]
[425206954,1781578244000,-185.0,0.00024,2]
[425206952,1781578244000,-501.0,0.00024,2]
[425206953,1781578244000,-3021.0,0.00024,2]
[425206961,1781578244000,-251.11897888,0.00024127,2]
[425206962,1781578244000,-444.89807101,0.00024127,2]
[425206955,1781578244000,-500.0,0.00024046,30]
[425207021,1781578246000,-15617.81,0.000254,2]
[425207025,1781578246000,-3905.3,0.00025786,2]
[425207019,1781578246000,-270.0455652,0.00025223,2]
[425207020,1781578246000,-188.51703405,0.00025397,2]
[425207024,1781578246000,-280.03725111,0.00025771,2]
[425207017,1781578246000,-728.69,0.00025082,7]
[425207027,1781578246000,-668.7,0.00026296,2]
[425207038,1781578246000,-362.26960922,0.00026849,2]
[425207026,1781578246000,-3635.41930716,0.00025819,2]
[425207028,1781578246000,-153.63196014,0.000263,2]
[425207039,1781578246000,-151.0,0.00026864,2]
[425207037,1781578246000,-351.07155081,0.00026849,2]
[425207029,1781578246000,-290.3986294,0.00026319,2]
[425207018,1781578246000,-978.57,0.00025082,7]
[425207030,1781578246000,-2000.0,0.00026326,7]
[425207022,1781578246000,-500.0,0.00025634,2]
[425207023,1781578246000,-5528.0,0.000257,3]
[425207013,1781578246000,-519.0,0.00025,2]
[425207016,1781578246000,-1152.77,0.00025082,7]
[425207031,1781578246000,-188.51703405,0.00026397,2]
[425206996,1781578246000,-52554.95367608,0.000247,2]
[425207000,1781578246000,-500.0,0.00024868,30]
[425206998,1781578246000,-2000.0,0.00024807,7]
[425207002,1781578246000,-500.0,0.00024868,30]
[425207009,1781578246000,-174.0,0.00025,2]
[425207003,1781578246000,-500.0,0.00024887,2]
[425207014,1781578246000,-199.02503161,0.00025,2]
[425207012,1781578246000,-377.78486093,0.00025,2]
[425207010,1781578246000,-211.6188236,0.00025,2]
[425207005,1781578246000,-6001.62907571,0.00024972,2]
[425207008,1781578246000,-202.0,0.00025,2]
[425207007,1781578246000,-611.0,0.00025,2]
[425207004,1781578246000,-9882.81,0.00024948,7]
[425207006,1781578246000,-1102.58414403,0.00025,2]
[425207015,1781578246000,-158.0,0.00025,2]
[425207011,1781578246000,-1261.00569923,0.00025,2]
[425207036,1781578246000,-336.83206307,0.00026849,2]
[425207034,1781578246000,-5528.0,0.000266,5]
[425207033,1781578246000,-9882.81,0.00026597,7]
[425207064,1781578246000,-151.0,0.00027,7]
[425207062,1781578246000,-151.0,0.00027,7]
[425207063,1781578246000,-151.0,0.00027,7]
[425207060,1781578246000,-151.0,0.00027,7]
[425207061,1781578246000,-151.0,0.00027,7]
[425207059,1781578246000,-151.0,0.00027,7]
[425207066,1781578246000,-151.0,0.00027,7]
[425207057,1781578246000,-151.0,0.00027,7]
[425207065,1781578246000,-151.0,0.00027,7]
[425207069,1781578246000,-151.0,0.00027,7]
[425207071,1781578246000,-151.0,0.00027,7]
[425207073,1781578246000,-151.0,0.00027,7]
[425207070,1781578246000,-151.0,0.00027,7]
[425207074,1781578246000,-151.0,0.00027,7]
[425207072,1781578246000,-151.0,0.00027,7]
[425207032,1781578246000,-500.0,0.00026403,2]
[425207067,1781578246000,-151.0,0.00027,7]
[425207058,1781578246000,-151.0,0.00027,7]
[425207068,1781578246000,-151.0,0.00027,7]
[425207054,1781578246000,-151.0,0.00027,7]
[425207035,1781578246000,-172.0,0.0002682,3]
[425207056,1781578246000,-151.0,0.00027,7]
[425207041,1781578246000,-775.4783256,0.00026864,2]
[425207040,1781578246000,-644.79446245,0.00026864,2]
[425207051,1781578246000,-151.0,0.00027,7]
[425207042,1781578246000,-301.14337869,0.00026867,2]
[425207046,1781578246000,-151.0,0.00027,7]
[425207050,1781578246000,-151.0,0.00027,7]
[425207052,1781578246000,-151.0,0.00027,7]
[425207043,1781578246000,-164.2,0.000269,7]
[425207048,1781578246000,-151.0,0.00027,7]
[425207044,1781578246000,-151.0,0.00027,7]
[425207055,1781578246000,-151.0,0.00027,7]
[425207045,1781578246000,-151.0,0.00027,7]
[425207049,1781578246000,-151.0,0.00027,7]
[425207047,1781578246000,-151.0,0.00027,7]
[425207053,1781578246000,-151.0,0.00027,7]
[425207117,1781578247000,-157.90273339,0.00027189,5]
[425207119,1781578247000,-191.29042573,0.00027189,7]
[425207112,1781578247000,-934.0,0.00027135,2]
[425207110,1781578247000,-1359.0,0.00027135,2]
[425207114,1781578247000,-552.0,0.00027137,2]
[425207109,1781578247000,-383.0,0.00027135,2]
[425207126,1781578247000,-181.83451565,0.00027189,7]
[425207106,1781578247000,-151.0,0.00027,7]
[425207118,1781578247000,-173.66140788,0.00027189,7]
[425207104,1781578247000,-151.0,0.00027,7]
[425207111,1781578247000,-1275.0,0.00027135,2]
[425207120,1781578247000,-153.39996738,0.00027189,7]
[425207127,1781578247000,-500.0,0.00027195,2]
[425207116,1781578247000,-152.11633598,0.00027189,7]
[425207125,1781578247000,-156.22880002,0.00027189,7]
[425207122,1781578247000,-161.51448631,0.00027189,7]
[425207121,1781578247000,-166.53432858,0.00027189,7]
[425207123,1781578247000,-167.05210826,0.00027189,7]
[425207124,1781578247000,-189.30767357,0.00027189,7]
[425207137,1781578247000,-159.35498939,0.00027204,7]
[425207136,1781578247000,-162.45578141,0.00027204,7]
[425207129,1781578247000,-162.94870917,0.00027204,7]
[425207131,1781578247000,-157.98395651,0.00027204,7]
[425207132,1781578247000,-175.53669108,0.00027204,7]
[425207108,1781578247000,-3558.0,0.00027135,2]
[425207115,1781578247000,-168.34920212,0.00027189,7]
[425207113,1781578247000,-6078.0,0.00027135,2]
[425207081,1781578247000,-151.0,0.00027,7]
[425207103,1781578247000,-151.0,0.00027,7]
[425207077,1781578247000,-151.0,0.00027,7]
[425207076,1781578247000,-151.0,0.00027,7]
[425207075,1781578247000,-151.0,0.00027,7]
[425207079,1781578247000,-151.0,0.00027,7]
[425207089,1781578247000,-151.0,0.00027,7]
[425207090,1781578247000,-151.0,0.00027,7]
[425207078,1781578247000,-151.0,0.00027,7]
[425207082,1781578247000,-151.0,0.00027,7]
[425207080,1781578247000,-151.0,0.00027,7]
[425207083,1781578247000,-151.0,0.00027,7]
[425207088,1781578247000,-151.0,0.00027,7]
[425207087,1781578247000,-151.0,0.00027,7]
[425207085,1781578247000,-151.0,0.00027,7]
[425207091,1781578247000,-151.0,0.00027,7]
[425207094,1781578247000,-151.0,0.00027,7]
[425207093,1781578247000,-151.0,0.00027,7]
[425207096,1781578247000,-151.0,0.00027,7]
[425207098,1781578247000,-151.0,0.00027,7]
[425207097,1781578247000,-151.0,0.00027,7]
[425207099,1781578247000,-151.0,0.00027,7]
[425207102,1781578247000,-191.62,0.00027,7]
[425207092,1781578247000,-151.0,0.00027,7]
[425207095,1781578247000,-151.0,0.00027,7]
[425207100,1781578247000,-151.0,0.00027,7]
[425207101,1781578247000,-151.0,0.00027,7]
[425207107,1781578247000,-151.0,0.00027,7]
[425207133,1781578247000,-218.30758144,0.00027204,7]
[425207105,1781578247000,-151.0,0.00027,7]
[425207128,1781578247000,-203.140262,0.00027204,7]
[425207166,1781578247000,-502.99831514,0.00027397,2]
[425207165,1781578247000,-150.0,0.00027397,2]
[425207168,1781578247000,-500.44560089,0.00027397,2]
[425207171,1781578247000,-151.0,0.00027397,2]
[425207169,1781578247000,-151.0,0.00027397,2]
[425207172,1781578247000,-500.0,0.00027397,2]
[425207170,1781578247000,-151.0,0.00027397,2]
[425207174,1781578247000,-596.48843167,0.00027397,2]
[425207177,1781578247000,-522.13528574,0.00027397,2]
[425207173,1781578247000,-500.0,0.00027397,2]
[425207176,1781578247000,-500.37657169,0.00027397,2]
[425207175,1781578247000,-155.59064432,0.00027397,2]
[425207178,1781578247000,-1500.0,0.00027397,2]
[425207180,1781578247000,-551.61,0.00027397,2]
[425207181,1781578247000,-300.0,0.00027397,2]
[425207179,1781578247000,-317.06531867,0.00027397,2]
[425207183,1781578247000,-151.99422392,0.00027397,30]
[425207182,1781578247000,-150.74489282,0.00027397,7]
[425207186,1781578247000,-150.0,0.00027495,2]
[425207185,1781578247000,-2094.99,0.000274,7]
[425207188,1781578247000,-151.0,0.00027565,3]
[425207184,1781578247000,-1321.15,0.000274,7]
[425207190,1781578247000,-150.0,0.00027593,2]
[425207187,1781578247000,-455.51,0.000275,2]
[425207130,1781578247000,-174.10715663,0.00027204,7]
[425207167,1781578247000,-500.76602699,0.00027397,2]
[425207162,1781578247000,-168.65541743,0.00027261,7]
[425207189,1781578247000,-151.0,0.00027565,3]
[425207163,1781578247000,-153.80169713,0.00027261,7]
[425207135,1781578247000,-192.85991296,0.00027204,7]
[425207134,1781578247000,-164.54225104,0.00027204,7]
[425207138,1781578247000,-176.97848099,0.00027204,7]
[425207143,1781578247000,-156.4447186,0.00027204,7]
[425207140,1781578247000,-150.4397536,0.00027204,7]
[425207141,1781578247000,-175.78967717,0.00027204,7]
[425207139,1781578247000,-154.12784538,0.00027204,7]
[425207164,1781578247000,-6001.62907571,0.00027336,2]
[425207146,1781578247000,-207.44965345,0.00027204,7]
[425207142,1781578247000,-167.56267395,0.00027204,7]